bitfinex-derivatives/quotes_ETHF0:USTF0_20250107
["timestamp","ask_amount","ask_price","bid_price","bid_amount"]
[1736254585376,2.35359461,3635.1,3635.0,3.2078]
[1736254589774,6.00499683,3635.1,3635.0,3.2078]
[1736254592269,5.59217425,3635.1,3635.0,3.2078]
[1736254592476,0.27513,3634.7,3634.6,0.4518]
[1736254592674,1.27462461,3634.7,3634.6,0.4518]
[1736254593179,0.27514,3634.6,3634.5,0.4326]
[1736254593475,0.69514,3634.6,3634.5,0.4326]
[1736254593970,0.27515,3634.5,3634.4,3.2078]
[1736254594177,1.27464461,3634.5,3634.4,3.2078]
[1736254595075,3.43157962,3634.5,3634.4,3.2078]
[1736254596371,0.27517,3634.3,3634.2,0.4556]
[1736254596579,1.27466461,3634.3,3634.2,0.4556]
[1736254597070,0.27518,3634.1,3634.0,44.8733]
[1736254597273,2.49122402,3634.1,3634.0,4.0733]
[1736254599371,2.92372402,3634.1,3634.0,4.0733]
[1736254600274,2.92372402,3634.1,3634.0,3.2078]
[1736254600675,5.07904997,3634.1,3634.0,3.2078]
[1736254601974,2.92372402,3634.1,3634.0,3.2078]
[1736254602871,2.49122402,3634.1,3634.0,3.2078]
[1736254603071,0.27518,3634.1,3634.0,3.2078]
[1736254603275,0.27518,3634.1,3634.0,3.48299]
[1736254604973,2.15360603,3634.3,3634.0,3.2078]
[1736254605176,0.27518,3634.2,3634.1,0.27517]
[1736254606381,0.27518,3634.1,3634.0,3.48298]
[1736254606974,0.27518,3634.1,3634.0,3.2078]
[1736254607782,2.49122402,3634.1,3634.0,3.2078]
[1736254608375,0.27518,3634.1,3634.0,3.2078]
[1736254608984,2.49122402,3634.1,3634.0,3.2078]
[1736254611781,0.27518,3634.1,3634.0,3.2078]
[1736254611982,2.49122402,3634.1,3634.0,3.48299]
[1736254612688,0.27518,3634.1,3634.0,3.48299]
[1736254613679,0.27518,3634.2,3634.1,0.27517]
[1736254614783,0.27518,3634.3,3634.2,0.27517]
[1736254615285,2.15360603,3634.6,3634.5,0.27515]
[1736254615487,2.15360603,3634.6,3634.5,3.48295]
[1736254615893,2.42874603,3634.6,3634.5,3.48295]
[1736254616187,2.15360603,3634.6,3634.5,3.48295]
[1736254616687,2.15360603,3634.6,3634.5,44.28295]
[1736254617287,2.15360603,3634.6,3634.5,44.0078]
[1736254617586,2.21604402,3634.7,3634.3,0.4325]
[1736254617791,2.49120402,3634.4,3634.3,0.4325]
[1736254617980,2.49120402,3634.4,3634.3,0.70767]
[1736254618180,0.27516,3634.4,3634.3,0.70767]
[1736254618378,0.27514,3634.6,3634.5,0.27514]
[1736254618980,0.27514,3634.6,3634.5,0.70324]
[1736254619794,0.27514,3634.6,3634.5,0.70325]
[1736254625091,0.27514,3634.6,3634.5,41.50325]
[1736254631095,0.27514,3634.6,3634.5,41.2281]
[1736254631501,2.42874603,3634.6,3634.5,41.50325]
[1736254633899,2.42874603,3634.6,3634.5,41.92155]
[1736254634202,2.42874603,3634.6,3634.5,41.2281]
[1736254634394,2.42874603,3634.6,3634.5,41.50325]
[1736254637501,0.27514,3634.6,3634.5,41.50325]
[1736254639098,2.42874603,3634.6,3634.5,41.50325]
[1736254639995,0.27514,3634.6,3634.5,41.50325]
[1736254640394,0.27514,3634.6,3634.5,41.2281]
[1736254640593,0.27514,3634.6,3634.5,0.4281]
[1736254640798,0.27515,3634.5,3634.4,3.2078]
[1736254641097,0.73545,3634.5,3634.4,3.2078]
[1736254641902,0.27517,3634.2,3634.1,4.32103961]
[1736254642603,0.72107,3634.2,3634.1,4.32103961]
[1736254652523,0.27523,3633.5,3633.4,4.0894]
[1736254653214,0.27523,3633.5,3633.4,0.8816]
[1736254653416,0.27523,3633.5,3633.4,4.0894]
[1736254659420,0.27523,3633.5,3633.4,0.8816]
[1736254659620,0.27523,3633.5,3633.4,4.0894]
[1736254660023,0.27523,3633.5,3633.4,4.36463]
[1736254662916,0.27523,3633.5,3633.4,1.15683]
[1736254663228,0.27523,3633.5,3633.4,4.36463]
[1736254665327,2.21604402,3633.6,3633.4,4.0894]
[1736254665523,2.49126402,3633.6,3633.5,0.27523]
[1736254669526,1.27548687,3633.6,3633.5,0.27523]
[1736254679128,3.43084966,3633.6,3633.5,0.27523]
[1736254680439,0.27523,3633.5,3633.4,4.36463]
[1736254682044,2.43059279,3633.5,3633.4,4.36463]
[1736254682829,2.15536279,3633.5,3633.4,4.36463]
[1736254684734,2.15536279,3633.7,3633.6,0.27522]
[1736254685942,2.15536279,3633.7,3633.6,4.60364037]
[1736254686134,3.15562966,3633.7,3633.6,4.60364037]
[1736254686941,3.43083966,3633.7,3633.6,4.60364037]
[1736254687139,4.31113966,3633.7,3633.6,4.32842037]
[1736254687341,5.80173311,3633.7,3633.6,4.32842037]
[1736254688543,2.56868892,3633.7,3633.6,4.60364037]
[1736254688745,2.15577687,3633.7,3633.6,0.27522]
[1736254689244,0.27522,3633.6,3633.5,4.60364037]
[1736254690143,0.27522,3633.6,3633.5,4.32842037]
[1736254690742,0.27522,3633.6,3633.5,4.60365037]
[1736254691444,0.27522,3633.6,3633.5,0.27523]
[1736254691445,0.68813205,3633.6,3633.5,0.27523]
[1736254692543,0.41291205,3633.6,3633.5,0.27523]
[1736254692743,0.68813205,3633.6,3633.5,0.27523]
[1736254693341,0.41291205,3633.6,3633.5,0.27523]
[1736254693745,0.41291205,3633.6,3633.5,0.71483]
[1736254694435,0.68813205,3633.6,3633.5,0.71483]
[1736254695840,0.68813205,3633.6,3633.5,0.27523]
[1736254696545,0.41291205,3633.6,3633.5,0.27523]
[1736254696946,0.68813205,3633.6,3633.5,0.27523]
[1736254697645,0.41291205,3633.6,3633.5,0.27523]
[1736254697945,0.41291205,3633.6,3633.5,0.69443]
[1736254699237,3.24163794,3633.6,3633.5,7.17598942]
[1736254700748,4.24190481,3633.6,3633.5,7.17598942]
[1736254702849,1.00026687,3633.6,3633.5,7.17598942]
[1736254703349,1.00026687,3633.6,3633.5,47.97598942]
[1736254704444,3.24163794,3633.7,3633.5,48.79102629]
[1736254704647,3.24163794,3633.7,3633.6,0.27522]
[1736254704846,3.24163794,3633.7,3633.6,0.69222]
[1736254705345,3.24163794,3633.7,3633.6,41.49222]
[1736254708253,3.24163794,3633.7,3633.6,44.70002]
[1736254709553,2.16007282,3633.7,3633.6,50.90635942]
[1736254709742,2.16007282,3633.7,3633.6,51.18157942]
[1736254711647,2.16007282,3633.7,3633.6,44.70002]
[1736254715657,2.16007282,3633.8,3633.7,0.27521]
[1736254715952,2.16007282,3633.8,3633.7,3.48301]
[1736254716251,2.16007282,3633.8,3633.7,44.28301]
[1736254718348,2.16007282,3633.8,3633.7,45.28327687]
[1736254718752,2.16007282,3633.8,3633.7,49.61207866]
[1736254720355,3.16033969,3633.9,3633.7,44.0078]
[1736254720555,3.58993969,3633.9,3633.8,0.2752]
[1736254721654,3.58993969,3633.9,3633.8,4.60346875]
[1736254721845,3.86513969,3633.9,3633.8,4.60346875]
[1736254722655,4.27807496,3633.9,3633.8,0.2752]
[1736254722858,0.2752,3633.8,3633.7,44.28301]
[1736254723058,0.4331,3633.8,3633.7,44.28301]
[1736254723356,0.7083,3633.8,3633.7,44.28301]
[1736254723955,3.94794759,3633.8,3633.7,44.28301]
[1736254727060,3.94794759,3633.8,3633.7,3.2078]
[1736254728357,5.44343752,3633.8,3633.7,3.2078]
[1736254728561,5.16823752,3633.8,3633.6,0.27521]
[1736254728755,1.27547687,3633.7,3633.6,0.27521]
[1736254729464,1.68843047,3633.7,3633.6,0.27521]
[1736254730163,0.4129536,3633.7,3633.6,0.27521]
[1736254730662,0.4129536,3633.7,3633.6,0.69511]
[1736254730858,0.4129536,3633.7,3633.6,41.49511]
[1736254731959,2.16096004,3633.7,3633.6,41.49512]
[1736254734760,2.16096004,3633.8,3633.7,0.27521]
[1736254735366,2.16096004,3633.8,3633.7,41.07521]
[1736254738969,4.24170694,3634.0,3633.8,0.2752]
[1736254738970,3.65434749,3633.9,3633.8,0.2752]
[1736254739269,3.65434749,3633.9,3633.8,3.483]
[1736254739862,3.65434749,3633.9,3633.8,44.283]
[1736254741361,3.65434749,3633.9,3633.8,48.6122297]
[1736254741970,3.92954749,3633.9,3633.8,7.8122297]
[1736254742773,0.68810742,3633.9,3633.8,3.483]
[1736254744065,4.32218392,3633.9,3633.8,3.483]
[1736254745368,4.73509134,3633.9,3633.8,3.483]
[1736254745866,5.01029134,3633.9,3633.8,3.483]
[1736254746966,5.01029134,3633.9,3633.8,3.2078]
[1736254747166,0.2752,3633.8,3633.7,4.3292297]
[1736254747366,2.16426687,3633.8,3633.7,4.3292297]
[1736254748070,0.27521,3633.7,3633.6,4.3292297]
[1736254748269,0.71181,3633.7,3633.6,4.3292297]
[1736254748565,0.71181,3633.7,3633.6,4.6044497]
[1736254748770,0.71181,3633.7,3633.6,4.3292297]
[1736254748971,0.71181,3633.7,3633.6,4.6044497]
[1736254749272,1.12471742,3633.7,3633.6,4.6044497]
[1736254749465,1.12471742,3633.7,3633.6,4.3292297]
[1736254749665,1.12471742,3633.7,3633.6,4.6044497]
[1736254749872,1.12471742,3633.7,3633.6,4.3292297]
[1736254751175,1.12471742,3633.7,3633.6,4.6044497]
[1736254751867,1.12471742,3633.7,3633.6,4.3292297]
[1736254753874,1.12471742,3633.7,3633.6,4.6044497]
[1736254754072,0.41290742,3633.7,3633.6,5.60471657]
[1736254754375,0.41290742,3633.7,3633.6,4.6044497]
[1736254754571,4.92968918,3633.7,3633.6,45.4044497]
[1736254755071,4.65447918,3633.7,3633.6,45.4044497]
[1736254755279,4.92968918,3633.7,3633.6,4.3292297]
[1736254756075,0.27523,3633.5,3633.4,7.5370297]
[1736254756377,1.27549687,3633.5,3633.4,7.5370297]
[1736254757178,1.27549687,3633.5,3633.4,7.8122597]
[1736254757476,1.27549687,3633.5,3633.4,3.48303]
[1736254757477,6.0076274,3633.5,3633.4,3.48303]
[1736254758078,4.73213053,3633.5,3633.4,3.48303]
[1736254758877,0.41290742,3633.5,3633.4,44.28303]
[1736254759177,0.68813742,3633.5,3633.4,44.28303]
[1736254759475,0.41290742,3633.5,3633.4,44.28303]
[1736254759781,0.68813742,3633.5,3633.4,44.28303]
[1736254760879,0.41290742,3633.5,3633.4,44.28303]
[1736254761170,0.68813742,3633.5,3633.4,41.07523]
[1736254761376,1.68840429,3633.5,3633.4,41.07523]
[1736254761678,2.10890429,3633.5,3633.4,41.07523]
[1736254763077,1.68840429,3633.5,3633.4,41.07523]
[1736254763775,0.41290742,3633.5,3633.4,41.07523]
[1736254765380,0.68813742,3633.5,3633.4,41.07523]
[1736254767374,0.41290742,3633.5,3633.4,41.07523]
[1736254767973,0.41290742,3633.5,3633.4,42.07549687]
[1736254768678,4.73213053,3633.6,3633.5,0.27523]
[1736254768872,4.73213053,3633.6,3633.5,0.71053]
[1736254769073,4.73213053,3633.6,3633.5,1.14673]
[1736254769679,2.43392529,3633.6,3633.5,1.14673]
[1736254769979,2.15870529,3633.6,3633.5,1.14673]
[1736254772479,2.15870529,3633.6,3633.5,5.4759597]
[1736254775381,2.15870529,3633.7,3633.6,0.27522]
[1736254775579,2.15870529,3633.7,3633.6,0.70272]
[1736254776979,2.15870529,3633.7,3633.6,5.0319497]
[1736254778584,2.15870529,3633.7,3633.6,6.03221657]
[1736254779686,2.15870529,3633.8,3633.7,0.27521]
[1736254780986,2.15870529,3633.8,3633.7,4.60282011]
[1736254784491,2.15870529,3633.9,3633.6,7.90932629]
[1736254784684,2.15870529,3633.9,3633.8,4.48326687]
[1736254785691,2.15870529,3633.9,3633.8,8.81057218]
[1736254788294,2.15870529,3633.9,3633.8,4.48326687]
[1736254789918,2.62040529,3634.0,3633.8,4.20806687]
[1736254790118,2.62040529,3634.0,3633.9,0.2752]
[1736254790316,2.62040529,3634.0,3633.9,0.7102]
[1736254791602,2.62040529,3634.0,3633.9,3.918]
[1736254792296,2.15870529,3634.0,3633.9,3.918]
[1736254793796,1.42386687,3634.1,3634.0,0.27519]
[1736254795203,1.42386687,3634.1,3634.0,3.48299]
[1736254796101,0.4236,3634.1,3634.0,3.48299]
[1736254797805,0.4236,3634.1,3634.0,0.27519]
[1736254798105,0.4236,3634.1,3634.0,3.48299]
[1736254800607,0.4236,3634.1,3634.0,4.48325687]
[1736254800812,2.15870529,3634.2,3634.1,0.27518]
[1736254801108,2.15870529,3634.2,3634.1,0.69758]
[1736254801313,0.0847053,3634.2,3634.1,1.15378]
[1736254801507,3.23805793,3634.4,3634.2,0.27517]
[1736254801508,0.0847053,3634.3,3634.2,0.27517]
[1736254801706,0.0847053,3634.3,3634.2,42.07543687]
[1736254801905,0.0847053,3634.3,3634.2,43.25640566]
[1736254802529,3.15335263,3634.4,3634.3,0.27517]
[1736254802814,1.68709565,3634.4,3634.3,2.55613879]
[1736254803014,7.17383451,3635.3,3634.3,2.71206879]
[1736254803015,2.68736252,3635.2,3634.3,2.71206879]
[1736254803210,2.68736252,3635.2,3635.1,3.4829]
[1736254803513,2.96246252,3635.2,3635.1,3.2078]
[1736254804106,2.96246252,3635.2,3635.1,3.4829]
[1736254804410,1.27536687,3635.2,3635.1,3.2078]
[1736254804909,1.00026687,3635.2,3635.1,3.4829]
[1736254805107,1.27536687,3635.2,3635.1,3.2078]
[1736254807110,1.27536687,3635.2,3635.1,3.4829]
[1736254807413,0.422,3635.3,3635.1,3.2078]
[1736254807708,1.69735687,3635.3,3635.2,0.2751]
[1736254808211,1.42226687,3635.3,3635.2,0.2751]
[1736254808408,1.69735687,3635.3,3635.2,0.2751]
[1736254809310,1.42226687,3635.3,3635.1,3.2078]
[1736254809519,1.69735687,3635.3,3635.2,0.2751]
[1736254810016,1.42226687,3635.3,3635.1,3.2078]
[1736254810313,0.2751,3635.2,3635.1,3.4829]
[1736254810911,1.69735687,3635.3,3635.2,0.2751]
[1736254811208,1.42226687,3635.3,3635.2,0.2751]
[1736254811409,0.422,3635.3,3635.2,0.2751]
[1736254811612,0.422,3635.3,3635.2,1.27536687]
[1736254811915,1.077,3635.9,3635.2,1.45376687]
[1736254811916,1.27532687,3635.7,3635.2,1.45376687]
[1736254812117,1.27532687,3635.7,3635.6,0.27507]
[1736254812412,1.00026687,3635.7,3635.6,0.27507]
[1736254814212,1.00026687,3635.7,3635.6,0.70617]
[1736254818115,0.27507,3635.6,3635.5,3.2078]
[1736254818418,1.00026687,3635.7,3635.2,0.27509]
[1736254818608,0.2751,3635.2,3635.1,3.4829]
[1736254818807,0.2751,3635.2,3635.1,3.2078]
[1736254819118,1.1727,3635.2,3635.1,3.4829]
[1736254820819,1.1727,3635.2,3635.1,3.2078]
[1736254821024,1.1727,3635.2,3635.1,3.4829]
[1736254822135,1.1727,3635.2,3635.1,3.2078]
[1736254822326,0.8976,3635.2,3634.6,3.48294]
[1736254822621,1.00026687,3634.7,3634.6,3.2078]
[1736254822919,0.27515,3634.5,3634.4,45.11952412]
[1736254823119,1.27541687,3634.5,3634.4,45.11952412]
[1736254823419,1.27541687,3634.5,3634.4,40.8]
[1736254823420,0.27515,3634.5,3634.4,40.8]
[1736254823921,0.27515,3634.5,3634.4,0.27516]
[1736254824825,0.8857,3634.6,3634.3,41.2298]
[1736254825125,1.16085,3634.6,3634.5,0.27515]
[1736254826824,0.27516,3634.5,3634.4,0.27515]
[1736254832428,0.27516,3634.4,3634.3,44.71276]
[1736254836528,0.27516,3634.4,3634.3,44.4376]
[1736254837336,0.27516,3634.4,3634.3,44.71277]
[1736254838336,0.27516,3634.4,3634.3,44.4376]
[1736254838728,0.27516,3634.4,3634.3,44.71277]
[1736254838932,0.27516,3634.4,3634.3,44.4376]
[1736254839336,0.27516,3634.4,3634.3,44.71277]
[1736254840441,0.27516,3634.4,3634.3,44.4376]
[1736254841647,0.27516,3634.4,3634.3,41.2298]
[1736254843739,0.27516,3634.4,3634.3,0.4298]
[1736254850744,0.9996989,3634.5,3634.2,4.38907]
[1736254850941,0.27517,3634.3,3634.2,4.1139]
[1736254852241,1.2748689,3634.3,3634.2,4.1139]
[1736254856341,1.2748689,3634.3,3634.2,3.6535]
[1736254856547,1.2748689,3634.3,3634.2,3.2078]
[1736254856747,0.27517,3634.3,3634.2,3.2078]
[1736254857542,1.9993978,3634.4,3633.8,3.6344]
[1736254857750,1.2748989,3633.9,3633.8,3.6344]
[1736254860541,0.2752,3633.9,3633.8,3.6344]
[1736254860854,1.2748989,3633.9,3633.8,3.6344]
[1736254861360,1.076,3634.2,3633.8,3.6344]
[1736254861562,6.39492201,3634.5,3634.0,0.9996989]
[1736254861742,0.27517,3634.3,3634.2,4.4826689]
[1736254862052,0.27517,3634.3,3634.2,45.7044689]
[1736254862554,0.27516,3634.4,3634.3,0.27516]
[1736254863153,0.27517,3634.3,3634.2,45.7044689]
[1736254863650,0.9996989,3634.3,3633.9,4.31952412]
[1736254863850,1.2748889,3634.0,3633.9,4.31952412]
[1736254864450,1.2748889,3634.0,3633.8,6.47928618]
[1736254864451,12.84581607,3634.0,3633.8,6.16602031]
[1736254864648,0.9996989,3633.9,3633.6,8.61654254]
[1736254864949,0.9996989,3633.9,3633.1,0.4218]
[1736254864950,5.2071978,3633.7,3633.1,6.48532193]
[1736254865157,1.2749489,3633.2,3633.1,6.48532193]
[1736254865351,3.56876316,3633.2,3633.1,6.48532193]
[1736254866747,3.56876316,3633.2,3632.9,8.64709591]
[1736254866748,0.27527,3632.9,3632.8,0.70177]
[1736254869059,0.27527,3632.9,3632.8,41.2265]
[1736254870859,0.27528,3632.8,3632.7,3.48308]
[1736254871367,0.27528,3632.8,3632.7,3.48309]
[1736254871759,0.27528,3632.8,3632.7,3.2078]
[1736254871960,0.27528,3632.8,3632.7,44.0078]
[1736254873758,3.23345946,3633.3,3632.9,0.27526]
[1736254874063,3.23345946,3633.3,3633.2,3.48305]
[1736254874264,4.31127929,3633.5,3633.2,3.2078]
[1736254874567,1.54087929,3633.5,3633.4,2.49274316]
[1736254875063,9.71511676,3634.2,3633.4,2.49274316]
[1736254875064,5.73505522,3634.4,3633.4,2.21751316]
[1736254875264,5.73505522,3634.4,3633.8,3.2078]
[1736254875265,2.21751316,3634.2,3633.8,3.2078]
[1736254875469,0.2752,3633.9,3633.8,3.2078]
[1736254877764,0.3379,3634.4,3633.8,3.2078]
[1736254877965,0.27517,3634.3,3634.2,3.2078]
[1736254879174,0.2752,3633.9,3633.8,3.2078]
[1736254881771,2.49271316,3633.9,3633.8,3.2078]
[1736254882867,0.27523,3633.5,3633.4,3.48303]
[1736254883169,0.27523,3633.5,3633.4,3.2078]
[1736254884570,0.27523,3633.5,3632.4,0.276]
[1736254884571,3.29351316,3633.5,3632.6,3.2078]
[1736254884769,0.27529,3632.7,3632.6,3.2078]
[1736254885261,0.72329,3632.7,3632.6,3.2078]
[1736254886363,0.27529,3632.7,3632.6,3.2078]
[1736254887974,0.27528,3632.8,3632.6,3.2078]
[1736254888174,0.27527,3633.0,3632.9,0.27527]
[1736254888370,0.27527,3633.0,3632.6,3.2078]
[1736254888371,0.27527,3632.9,3632.8,0.27528]
[1736254888769,0.27527,3632.9,3632.8,41.07528]
[1736254888970,2.21751316,3633.0,3632.6,3.2078]
[1736254889179,0.27529,3632.7,3632.6,3.2078]
[1736254889476,0.27529,3632.7,3632.6,44.0078]
[1736254890577,2.49280316,3632.7,3632.6,44.0078]
[1736254890979,2.49280316,3632.7,3632.6,3.2078]
[1736254891280,0.27529,3632.7,3632.6,3.2078]
[1736254896676,0.27527,3633.0,3632.9,0.27526]
[1736254897077,0.448,3633.3,3632.7,1.344]
[1736254897275,0.448,3633.3,3632.9,40.8]
[1736254897479,0.448,3633.3,3632.9,41.07527]
[1736254897480,0.27526,3633.0,3632.9,41.07527]
[1736254898175,0.27526,3633.0,3632.9,40.8]
[1736254899275,3.35363316,3633.3,3632.6,3.2078]
[1736254899276,2.66551316,3633.3,3632.6,3.2078]
[1736254899481,0.27529,3632.7,3632.6,3.2078]
[1736254903172,2.21751316,3633.0,3632.4,3.2078]
[1736254903483,0.2753,3632.5,3632.4,3.2078]
[1736254903871,0.7016,3632.5,3632.4,3.2078]
[1736254906879,0.7016,3632.5,3632.4,3.48311]
[1736254907279,0.7016,3632.5,3632.4,3.2078]
[1736254909084,0.27531,3632.4,3632.3,0.27531]
[1736254909382,0.27531,3632.4,3632.3,3.48311]
[1736254909583,0.27531,3632.4,3632.3,3.2078]
[1736254914585,2.64381316,3632.5,3631.9,3.2078]
[1736254914879,0.27534,3632.0,3631.9,3.2078]
[1736254916286,0.27534,3632.0,3631.9,3.48315]
[1736254916486,0.27534,3632.0,3631.9,3.2078]
[1736254918383,0.27534,3632.0,3631.9,3.48315]
[1736254918984,0.27534,3632.0,3631.9,44.28315]
[1736254920187,0.27534,3632.0,3631.9,44.0078]
[1736254920388,0.27534,3632.0,3631.9,44.28315]
[1736254921192,0.27534,3632.0,3631.9,44.0078]
[1736254921494,0.27534,3632.0,3631.9,44.28315]
[1736254922785,0.27534,3632.0,3631.9,44.0078]
[1736254923386,0.4263,3632.5,3631.9,44.0078]
[1736254923594,0.4263,3632.5,3631.9,46.91367316]
[1736254923595,2.15324038,3632.3,3631.9,46.91367316]
[1736254923889,2.15324038,3632.3,3632.2,0.27532]
[1736254924690,0.2753,3632.5,3632.1,0.9155]
[1736254924991,0.27531,3632.4,3632.3,0.27531]
[1736254925191,3.53131316,3632.6,3632.1,0.9155]
[1736254925392,0.2753,3632.5,3632.4,0.27531]
[1736254925790,0.27531,3632.4,3632.3,0.27531]
[1736254925986,5.68455354,3632.6,3632.1,0.4606]
[1736254926184,0.27532,3632.2,3632.1,0.4606]
[1736254927092,2.21751316,3632.3,3631.9,3.2078]
[1736254927295,0.27534,3632.0,3631.9,3.2078]
[1736254927698,1.18814,3632.0,3631.9,3.2078]
[1736254928103,3.40565316,3632.0,3631.9,3.2078]
[1736254928805,5.55889354,3632.0,3631.9,3.2078]
[1736254929598,3.34138038,3632.0,3631.9,3.2078]
[1736254929801,2.15324038,3632.0,3631.9,3.48315]
[1736254930007,4.30474237,3632.4,3631.9,3.90085]
[1736254930008,4.30474237,3632.2,3631.9,3.90085]
[1736254930299,4.30474237,3632.2,3632.1,0.27533]
[1736254931197,2.15896255,3632.3,3632.0,0.8959]
[1736254931401,2.15896255,3632.3,3632.2,0.27532]
[1736254932600,2.15896255,3632.4,3632.3,0.27532]
[1736254932802,2.15896255,3632.4,3632.3,3.48312]
[1736254933903,2.15896255,3632.8,3632.3,5.70063316]
[1736254934100,2.15896255,3632.8,3632.7,3.48309]
[1736254934305,2.15896255,3632.8,3632.7,44.28309]
[1736254935208,2.15896255,3632.9,3632.8,0.27528]
[1736254936810,2.15896255,3632.9,3632.8,0.73218]
[1736254938004,3.23882189,3633.0,3632.8,0.4569]
[1736254938207,3.23882189,3633.0,3632.9,2.49278316]
[1736254938703,3.23882189,3633.3,3633.2,0.27525]
[1736254938906,3.23882189,3633.3,3633.2,5.70056316]
[1736254939413,4.30474237,3633.5,3633.4,0.27523]
[1736254939709,4.30474237,3633.5,3633.4,43.29274316]
[1736254940209,0.4286,3634.2,3633.4,43.01751316]
[1736254940510,0.4286,3634.2,3634.1,3.48298]
[1736254942605,0.4505,3634.5,3634.4,0.27516]
[1736254943807,0.4505,3634.5,3634.4,41.07516]
[1736254946112,0.4505,3634.5,3634.4,0.27516]
[1736254953615,0.72566,3634.5,3634.3,3.48296]
[1736254953820,0.27516,3634.4,3634.3,3.2078]
[1736254954022,0.72565,3634.5,3634.4,0.27516]
[1736254954220,0.4505,3634.5,3634.4,0.27516]
[1736254959331,0.72565,3634.5,3634.4,0.27516]
[1736254959527,0.4505,3634.5,3634.4,0.27516]
[1736254960518,0.27516,3634.4,3634.3,2.79026]
[1736254960726,0.72565,3634.5,3634.4,0.27516]
[1736254960928,0.4505,3634.5,3634.4,0.27516]
[1736254961119,0.72565,3634.5,3634.4,0.27516]
[1736254961433,0.4505,3634.5,3634.4,0.27516]
[1736254965729,0.4352,3634.7,3634.3,2.5151]
[1736254965932,0.4503,3634.8,3634.7,0.27513]
[1736254966135,0.4516,3635.0,3634.9,0.27512]
[1736254966732,0.4617,3635.5,3635.4,0.27508]
[1736254975035,2.67921316,3635.5,3634.9,3.2078]
[1736254975235,2.95429316,3635.5,3635.3,0.27509]
[1736254975630,0.73678,3635.5,3635.3,0.27509]
[1736254976036,0.73678,3635.5,3635.0,40.8]
[1736254976037,0.4617,3635.5,3635.0,40.8]
[1736254976237,0.4617,3635.5,3635.4,0.27508]
[1736254976635,0.73677,3635.5,3635.4,0.27508]
[1736254976835,0.73677,3635.5,3635.3,0.27509]
[1736254977239,0.4617,3635.5,3635.3,0.27509]
[1736254977741,0.73678,3635.5,3635.3,0.27509]
[1736254977942,0.4617,3635.5,3635.4,0.27508]
[1736254978536,0.73677,3635.5,3635.4,0.27508]
[1736254978841,0.73677,3635.5,3635.3,0.27508]
[1736254979040,0.4617,3635.5,3635.4,0.27508]
[1736254980341,0.4617,3635.5,3635.4,3.48288]
[1736254980941,0.4617,3635.5,3635.4,44.28288]
[1736254983634,0.4459,3635.6,3635.4,44.0078]
[1736254983836,0.4459,3635.6,3635.5,0.27507]
[1736254984038,0.4459,3635.6,3635.5,2.49258316]
[1736254984242,0.4187,3635.7,3635.6,0.27507]
[1736254988939,6.50910194,3636.6,3635.5,2.21751316]
[1736254989140,6.50910194,3636.6,3636.2,0.27502]
[1736254989141,0.4387,3636.3,3636.2,0.27502]
[1736254990438,0.4387,3636.3,3635.9,3.2078]
[1736254990643,2.65621316,3636.3,3635.5,8.2075885]
[1736254991150,2.49255316,3636.0,3635.8,0.27504]
[1736254991445,0.4394,3635.9,3635.8,0.27505]
[1736254992052,0.27507,3635.7,3635.5,4.3121085]
[1736254992243,2.21751316,3635.7,3635.5,4.3121085]
[1736254992444,2.21751316,3635.7,3635.4,40.8]
[1736254992748,2.21751316,3635.7,3635.6,0.27507]
[1736254992938,0.8863,3635.8,3635.4,40.8]
[1736254993139,0.8863,3635.8,3635.7,0.27506]
[1736254996245,1.16136,3635.8,3635.4,44.0078]
[1736254996547,1.16136,3635.8,3635.7,0.27506]
[1736254996942,0.8863,3635.8,3635.7,0.27506]
[1736254999042,0.8863,3635.8,3635.6,0.27506]
[1736254999243,2.49257316,3635.7,3635.6,0.27506]
[1736254999652,2.21751316,3635.7,3635.6,0.27506]
[1736254999845,2.21751316,3635.7,3635.4,44.0078]
[1736255000053,2.21751316,3635.7,3635.6,0.27507]
[1736255000245,2.21751316,3635.7,3635.4,44.0078]
[1736255000246,1.16135,3635.8,3635.4,44.0078]
[1736255000550,1.16135,3635.8,3635.7,0.27506]
[1736255000743,0.8863,3635.8,3635.4,44.0078]
[1736255000948,0.27506,3635.7,3635.6,0.27507]
[1736255001649,0.27506,3635.7,3635.4,44.0078]
[1736255001849,0.8863,3635.8,3635.5,0.27507]
[1736255002154,0.8863,3635.8,3635.7,0.27506]
[1736255002850,1.16135,3635.8,3635.7,0.27506]
[1736255003050,0.8863,3635.8,3635.4,44.0078]
[1736255003547,0.8863,3635.8,3635.5,0.27507]
[1736255003548,0.27506,3635.7,3635.5,0.27507]
[1736255003945,0.27506,3635.7,3635.4,44.0078]
[1736255004243,0.8863,3635.8,3635.4,44.0078]
[1736255004449,0.27507,3635.5,3635.4,44.0078]
[1736255005349,0.27507,3635.6,3635.5,0.27507]
[1736255005849,5.19901004,3635.8,3635.4,44.0078]
[1736255006047,0.27507,3635.5,3635.4,44.0078]
[1736255007752,0.27507,3635.5,3635.4,44.28288]
[1736255010057,0.27507,3635.5,3635.4,41.07508]
[1736255010556,0.2751,3635.1,3635.0,7.7950085]
[1736255010952,0.2751,3635.1,3635.0,48.5950085]
[1736255011348,0.2751,3635.1,3635.0,48.3199085]
[1736255011555,0.2751,3635.1,3635.0,7.5199085]
[1736255011754,0.2751,3635.1,3635.0,4.3121085]
[1736255012456,0.2751,3635.1,3635.0,0.27511]
[1736255012457,0.68784175,3635.1,3635.0,0.27511]
[1736255014760,0.41274175,3635.1,3634.8,40.8]
[1736255015059,0.27512,3634.9,3634.8,41.07512]
[1736255015254,0.27512,3634.9,3634.8,40.8]
[1736255015456,0.27513,3634.9,3634.8,0.27512]
[1736255015657,0.27514,3634.8,3634.7,0.27513]
[1736255015856,3.29251316,3635.0,3634.6,40.8]
[1736255016161,0.70423,3634.7,3634.6,41.07514]
[1736255016756,0.70423,3634.7,3634.6,40.8]
[1736255017360,0.70423,3634.7,3634.6,41.07514]
[1736255017562,0.70423,3634.7,3634.6,40.8]